fUST/lending_fUST_20260405
["ID","MTS","AMOUNT","RATE_DAILY","PERIOD"]
[419763230,1775362238761,-500.0,0.00020234,2]
[419763231,1775362238771,-567.65446837,0.00020234,2]
[419763232,1775362238781,-500.0,0.00020234,2]
[419763233,1775362238791,-500.0,0.00020234,2]
[419763234,1775362238800,-500.0,0.00020234,2]
[419763235,1775362238810,-500.0,0.00020234,2]
[419763236,1775362238820,-500.0,0.00020234,2]
[419763237,1775362238830,-500.0,0.00020234,2]
[419763238,1775362238840,-500.0,0.00020234,2]
[419763239,1775362238850,-500.0,0.00020234,2]
[419763240,1775362238859,-500.0,0.00020234,2]
[419763241,1775362238869,-500.0,0.00020234,2]
[419763242,1775362238879,-500.0,0.00020234,2]
[419763243,1775362238889,-500.0,0.00020234,2]
[419763244,1775362238898,-500.0,0.00020234,2]
[419763245,1775362238908,-396.24224357,0.00020234,2]
[419763246,1775362238918,-500.0,0.00020234,2]
[419763247,1775362238928,-500.0,0.00020234,2]
[419763248,1775362238938,-500.0,0.00020234,2]
[419763249,1775362238948,-512.28908841,0.00020234,2]
[419763250,1775362238958,-500.0,0.00020234,2]
[419763251,1775362238968,-500.0,0.00020234,2]
[419763252,1775362238978,-500.0,0.00020234,2]
[419763253,1775362238987,-500.0,0.00020234,2]
[419763254,1775362238997,-500.0,0.00020234,2]
[419763255,1775362239007,-500.0,0.00020234,2]
[419763256,1775362239018,-500.0,0.00020234,2]
[419763257,1775362239028,-500.0,0.00020234,2]
[419763258,1775362239038,-500.0,0.00020234,2]
[419763259,1775362239048,-500.0,0.00020234,2]
[419763260,1775362239058,-500.0,0.00020234,2]
[419763261,1775362239069,-500.0,0.00020234,2]
[419763262,1775362239080,-500.0,0.00020234,2]
[419763263,1775362239090,-500.0,0.00020234,2]
[419763264,1775362239100,-500.0,0.00020234,2]
[419763265,1775362239109,-500.0,0.00020234,2]
[419763266,1775362239119,-500.0,0.00020234,2]
[419763268,1775362239129,-500.0,0.00020234,2]
[419763270,1775362239139,-500.0,0.00020234,2]
[419763272,1775362239149,-500.0,0.00020234,2]
[419763273,1775362239159,-500.0,0.00020234,2]
[419763274,1775362239169,-500.0,0.00020234,2]
[419763275,1775362239178,-500.0,0.00020234,2]
[419763276,1775362239188,-500.0,0.00020234,2]
[419763277,1775362239197,-500.0,0.00020234,2]
[419763278,1775362239207,-500.0,0.00020234,2]
[419763279,1775362239216,-500.0,0.00020234,2]
[419763280,1775362239226,-500.0,0.00020234,2]
[419763281,1775362239236,-500.0,0.00020234,2]
[419763282,1775362239246,-566.68499117,0.00020234,2]
[419763283,1775362239256,-500.0,0.00020234,2]
[419763284,1775362239265,-500.0,0.00020234,2]
[419763285,1775362239275,-500.0,0.00020234,2]
[419763286,1775362239284,-500.0,0.00020234,2]
[419763287,1775362239294,-500.0,0.00020234,2]
[419763288,1775362239304,-500.0,0.00020234,2]
[419763289,1775362239314,-500.0,0.00020234,2]
[419763290,1775362239323,-500.0,0.00020234,2]
[419763291,1775362239334,-500.0,0.00020234,2]
[419763292,1775362239344,-500.0,0.00020234,2]
[419763293,1775362239354,-500.0,0.00020234,2]
[419763294,1775362239363,-500.0,0.00020234,2]
[419763295,1775362239372,-500.0,0.00020234,2]
[419763296,1775362239383,-500.0,0.00020234,2]
[419763297,1775362239392,-500.0,0.00020234,2]
[419763298,1775362239402,-500.0,0.00020234,2]
[419763299,1775362239412,-500.0,0.00020234,2]
[419763300,1775362239422,-500.0,0.00020234,2]
[419763301,1775362239431,-577.22826632,0.00020234,2]
[419763302,1775362239441,-500.0,0.00020234,2]
[419763303,1775362239451,-500.0,0.00020234,2]
[419763304,1775362239461,-500.0,0.00020234,2]
[419763305,1775362239471,-500.0,0.00020234,2]
[419763306,1775362239481,-500.0,0.00020234,2]
[419763307,1775362239490,-500.0,0.00020234,2]
[419763308,1775362239500,-500.0,0.00020234,2]
[419763309,1775362239510,-500.0,0.00020234,2]
[419763310,1775362239519,-500.0,0.00020234,2]
[419763311,1775362239529,-500.0,0.00020234,2]
[419763312,1775362239539,-500.0,0.00020234,2]
[419763313,1775362239549,-500.0,0.00020234,2]
[419763314,1775362239558,-500.0,0.00020234,2]
[419763315,1775362239568,-500.0,0.00020234,2]
[419763316,1775362239578,-500.0,0.00020234,2]
[419763317,1775362239588,-500.0,0.00020234,2]
[419763318,1775362239597,-500.0,0.00020234,2]
[419763319,1775362239607,-500.0,0.00020234,2]
[419763320,1775362239617,-500.0,0.00020234,2]
[419763321,1775362239627,-500.0,0.00020234,2]
[419763322,1775362239637,-500.0,0.00020234,2]
[419763323,1775362239649,-500.0,0.00020234,2]
[419763324,1775362239660,-500.0,0.00020234,2]
[419763325,1775362239670,-500.0,0.00020234,2]
[419763326,1775362239680,-244.627509,0.00020235,2]
[419763327,1775362239691,-4616.4937557,0.00020236,2]
[419763328,1775362239700,-680.65050638,0.00020254,2]
[419763329,1775362239710,-500.0,0.00020377,2]
[419763330,1775362239719,-1000.0,0.00020377,2]
[419763331,1775362239729,-1000.0,0.00020377,2]
[419763332,1775362239739,-1371.73154061,0.00020448,3]
[419763333,1775362239748,-600.0,0.0002064,2]
[419763334,1775362239758,-3983.03413916,0.00020648,3]
[419763335,1775362239768,-153.875165,0.00020648,2]
[419763336,1775362239778,-2512.784095,0.00020648,2]
[419763337,1775362239893,-2512.784095,0.00020648,2]
[419763338,1775362239903,-2512.784095,0.00020648,2]
[419763339,1775362239912,-2512.784095,0.00020648,2]
[419763340,1775362239922,-2512.784095,0.00020648,2]
[419763341,1775362239931,-2512.784095,0.00020648,2]
[419763342,1775362239940,-2512.784095,0.00020648,2]
[419763343,1775362239949,-2512.784095,0.00020648,2]
[419763344,1775362239958,-862.432876,0.00020648,2]
[419763345,1775362239967,-862.432876,0.00020648,2]
[419763346,1775362239977,-862.432876,0.00020648,2]
[419763347,1775362239987,-862.432876,0.00020648,2]
[419763348,1775362239996,-862.432876,0.00020648,2]
[419763349,1775362240006,-862.432876,0.00020648,2]
[419763350,1775362240015,-862.432876,0.00020648,2]
[419763351,1775362240025,-862.432876,0.00020648,2]
[419763352,1775362240034,-357.945415,0.00020819,2]
[419763353,1775362240043,-1500.0,0.00020924,2]
[419763354,1775362240053,-1595.53499464,0.00020924,2]
[419763355,1775362240063,-279.91090801,0.00021,2]
[419763356,1775362240072,-6685.98006787,0.00021,2]
[419763357,1775362240082,-3500.0,0.00021,2]
[419763358,1775362240091,-2000.0,0.00021472,2]
[419763359,1775362240101,-965.95752903,0.000215,6]
[419763360,1775362240112,-196.18627,0.00021584,2]
[419763361,1775362240122,-1613.0,0.00021652,2]
[419763362,1775362240132,-345.31052224,0.0002167,2]
[419763363,1775362240142,-500.0,0.0002167,2]
[419763364,1775362240152,-534.94594145,0.0002167,2]
[419763365,1775362240162,-500.0,0.0002167,2]
[419763366,1775362240172,-534.94594145,0.0002167,2]
[419763367,1775362240181,-500.0,0.0002167,2]
[419763368,1775362240191,-534.94594145,0.0002167,2]
[419763369,1775362240200,-534.94594145,0.0002167,2]
[419763370,1775362240210,-534.94594145,0.0002167,2]
[419763371,1775362240219,-500.0,0.0002167,2]
[419763372,1775362240229,-500.0,0.0002167,2]
[419763373,1775362240238,-534.94594145,0.0002167,2]
[419763374,1775362240248,-534.94594145,0.0002167,2]
[419763375,1775362240258,-534.94594145,0.0002167,2]
[419763376,1775362240267,-500.0,0.0002167,2]
[419763378,1775362240277,-500.0,0.0002167,2]
[419763379,1775362240288,-500.0,0.0002167,2]
[419763380,1775362240297,-589.85517417,0.0002167,2]
[419763381,1775362240306,-534.94594145,0.0002167,2]
[419763382,1775362240316,-500.0,0.0002167,2]
[419763383,1775362240326,-534.94594145,0.0002167,2]
[419763384,1775362240335,-534.94594145,0.0002167,2]
[419763385,1775362240345,-534.94594145,0.0002167,2]
[419763386,1775362240354,-534.94594145,0.0002167,2]
[419763387,1775362240364,-500.0,0.0002167,2]
[419763388,1775362240373,-534.94594145,0.0002167,2]
[419763389,1775362240382,-534.94594145,0.0002167,2]
[419763390,1775362240391,-534.94594145,0.0002167,2]
[419763391,1775362240400,-2512.784095,0.00021673,2]
[419763392,1775362240410,-2512.784095,0.00021673,2]
[419763393,1775362240419,-2512.784095,0.00021673,2]
[419763394,1775362240428,-2512.784087,0.00021673,2]
[419763395,1775362240437,-862.432876,0.00021673,2]
[419763396,1775362240449,-862.432876,0.00021673,2]
[419763397,1775362240458,-862.432876,0.00021673,2]
[419763398,1775362240469,-54.26491303,0.00021673,2]
[419763399,1775362240488,-808.16796997,0.00021673,2]
[419763400,1775362240497,-14845.22159352,0.00021673,2]
[419763401,1775362240509,-1138.08360464,0.00021673,2]
[419763482,1775362241316,-3861.91639536,0.00021673,2]
[419763983,1775362246649,-5000.0,0.00021456,2]
[419763985,1775362246659,-2787.44149499,0.00021673,2]
[419764005,1775362246862,-5152.47188355,0.00021673,2]
[419764544,1775362277300,288.0,0.00032876,120]
[419764559,1775362852284,169.34,0.00034802,120]
[419764565,1775362911710,1178.0,0.00016101,120]
[419764571,1775363182704,1832.40605904,0.00034802,120]
[419764583,1775363432464,-1000.0,0.00013699,2]
[419764585,1775363432473,-300.0,0.00013831,2]
[419764587,1775363432482,-300.0,0.00013831,2]
[419764588,1775363432491,-300.0,0.00013831,2]
[419764590,1775363432500,-827.47473491,0.00013831,2]
[419764594,1775363432521,-181.52526509,0.00013831,2]
[419764596,1775363432531,-300.0,0.00013832,2]
[419764598,1775363432541,-96.04838497,0.00013832,2]
[419764783,1775363438865,-203.95161503,0.00013832,2]
[419764784,1775363438875,-300.0,0.00013832,2]
[419764785,1775363438884,-300.0,0.00013832,2]
[419764786,1775363438894,-300.0,0.00013832,2]
[419764787,1775363438903,-300.0,0.00013832,2]
[419764788,1775363438913,-300.0,0.00013832,2]
[419764789,1775363438924,-300.0,0.00013832,2]
[419764790,1775363438933,-300.0,0.00013832,2]
[419764791,1775363438943,-300.0,0.00013832,2]
[419764792,1775363438952,-300.0,0.00013832,2]
[419764793,1775363438961,-300.0,0.00013832,2]
[419764794,1775363438970,-300.0,0.00013832,2]
[419764795,1775363438980,-300.0,0.00013832,2]
[419764796,1775363438989,-300.0,0.00013832,2]
[419764797,1775363438998,-600.0,0.00014108,2]
[419764798,1775363439008,-420.0,0.00015155,2]
[419764799,1775363439017,-720.0,0.00015518,2]
[419764800,1775363439026,-2000.0,0.0001611,2]
[419764801,1775363439035,-587.0,0.00016606,2]
[419764802,1775363439045,-864.0,0.0001707,2]
[419764803,1775363439054,-823.0,0.00018196,2]
[419764805,1775363439063,-1000.0,0.00018777,2]
[419764806,1775363439072,-1152.0,0.00019938,2]
[419764808,1775363439083,-1000.0,0.00020655,2]
[419764809,1775363439093,-244.0,0.00020655,2]
[419764810,1775363439103,-716.6949734,0.000213,3]
[419764811,1775363439113,-168.23480473,0.0002137,2]
[419764812,1775363439122,-5567.13774351,0.00021373,2]
[419764813,1775363439131,-151.0,0.00021469,2]
[419764814,1775363439140,-151.0,0.00021469,2]
[419764815,1775363439150,-151.0,0.00021469,2]
[419764816,1775363439159,-250.78233,0.00021469,2]
[419764817,1775363439168,-152.126278,0.00021469,2]
[419764818,1775363439177,-588.84539385,0.00021469,2]
[419764819,1775363439187,-500.0,0.00021469,2]
[419764820,1775363439197,-500.0,0.00021469,2]
[419764821,1775363439206,-500.0,0.00021469,2]
[419764822,1775363439215,-500.0,0.00021469,2]
[419764823,1775363439225,-500.0,0.00021469,2]
[419764824,1775363439234,-500.0,0.00021469,2]
[419764825,1775363439243,-500.0,0.00021469,2]
[419764826,1775363439253,-500.0,0.00021469,2]
[419764827,1775363439263,-500.0,0.00021469,2]
[419764828,1775363439273,-500.0,0.00021469,2]
[419764829,1775363439283,-500.0,0.00021469,2]
[419764830,1775363439293,-500.0,0.00021469,2]
[419764831,1775363439302,-500.0,0.00021469,2]
[419764832,1775363439312,-500.0,0.00021469,2]
[419764833,1775363439321,-500.0,0.00021469,2]
[419764834,1775363439331,-500.0,0.00021469,2]
[419764835,1775363439340,-500.0,0.00021469,2]
[419764836,1775363439349,-500.0,0.00021469,2]
[419764837,1775363439359,-500.0,0.00021469,2]
[419764838,1775363439368,-500.0,0.00021469,2]
[419764839,1775363439378,-500.0,0.00021469,2]
[419764840,1775363439388,-500.0,0.00021469,2]
[419764841,1775363439397,-500.0,0.00021469,2]
[419764842,1775363439407,-500.0,0.00021469,2]
[419764843,1775363439416,-500.0,0.00021469,2]
[419764844,1775363439425,-500.0,0.00021469,2]
[419764845,1775363439434,-500.0,0.00021469,2]
[419764846,1775363439443,-500.0,0.00021469,2]
[419764847,1775363439453,-500.0,0.00021469,2]
[419764848,1775363439463,-500.0,0.00021469,2]
[419764849,1775363439472,-500.0,0.00021469,2]
[419764850,1775363439482,-500.0,0.00021469,2]
[419764851,1775363439491,-500.0,0.00021469,2]
[419764852,1775363439500,-500.0,0.00021469,2]
[419764853,1775363439510,-214.08113334,0.00021469,2]
[419764854,1775363439519,-500.0,0.00021469,2]
[419764855,1775363439529,-500.0,0.00021469,2]
[419764856,1775363439538,-364.60296066,0.00021469,2]
[419764857,1775363439548,-500.0,0.00021469,2]
[419764858,1775363439557,-62.43016722,0.00021469,2]
[419764859,1775363439569,-437.56983278,0.00021469,2]
[419764860,1775363439579,-500.0,0.00021469,2]
[419764861,1775363439588,-500.0,0.00021469,2]
[419764862,1775363439598,-500.0,0.00021469,2]
[419764863,1775363439607,-500.0,0.00021469,2]
[419764864,1775363439616,-93.50731351,0.00021469,2]
[419764865,1775363439628,-406.49268649,0.00021469,2]
[419764866,1775363439638,-500.0,0.00021469,2]
[419764867,1775363439648,-500.0,0.00021469,2]
[419764868,1775363439658,-500.0,0.00021469,2]
[419764869,1775363439667,-500.0,0.00021469,2]
[419764870,1775363439677,-500.0,0.00021469,2]
[419764871,1775363439687,-500.0,0.00021469,2]
[419764872,1775363439697,-500.0,0.00021469,2]
[419764873,1775363439706,-500.0,0.00021469,2]
[419764874,1775363439716,-500.0,0.00021469,2]
[419764875,1775363439726,-500.0,0.00021469,2]
[419764876,1775363439735,-500.0,0.00021469,2]
[419764877,1775363439745,-500.0,0.00021469,2]
[419764878,1775363439755,-500.0,0.00021469,2]
[419764879,1775363439765,-500.0,0.00021469,2]
[419764880,1775363439774,-500.0,0.00021469,2]
[419764881,1775363439785,-500.0,0.00021469,2]
[419764882,1775363439794,-500.0,0.00021469,2]
[419764883,1775363439803,-500.0,0.00021469,2]
[419764884,1775363439813,-500.0,0.00021469,2]
[419764885,1775363439822,-500.0,0.00021469,2]
[419764886,1775363439831,-324.69627341,0.00021469,2]
[419764887,1775363439840,-500.0,0.00021469,2]
[419764888,1775363439850,-500.0,0.00021469,2]
[419764889,1775363439859,-500.0,0.00021469,2]
[419764890,1775363439868,-500.0,0.00021469,2]
[419764891,1775363439877,-500.0,0.00021469,2]
[419764892,1775363439886,-500.0,0.00021469,2]
[419764893,1775363439895,-500.0,0.00021469,2]
[419764894,1775363439904,-500.0,0.00021469,2]
[419764895,1775363439914,-500.0,0.00021469,2]
[419764896,1775363439923,-500.0,0.00021469,2]
[419764897,1775363439931,-500.0,0.00021469,2]
[419764898,1775363439941,-500.0,0.00021469,2]
[419764899,1775363439950,-500.0,0.00021469,2]
[419764900,1775363439959,-500.0,0.00021469,2]
[419764901,1775363439968,-650.0,0.00021469,2]
[419764902,1775363439977,-500.0,0.00021469,2]
[419764903,1775363439986,-500.0,0.00021469,2]
[419764904,1775363439995,-500.0,0.00021469,2]
[419764905,1775363440004,-500.0,0.00021469,2]
[419764906,1775363440013,-500.0,0.00021469,2]
[419764907,1775363440022,-500.0,0.00021469,2]
[419764908,1775363440031,-500.0,0.00021469,2]
[419764909,1775363440040,-500.0,0.00021469,2]
[419764910,1775363440049,-500.0,0.00021469,2]
[419764911,1775363440059,-500.0,0.00021469,2]
[419764912,1775363440068,-500.0,0.00021469,2]
[419764913,1775363440077,-500.0,0.00021469,2]
[419764914,1775363440086,-300.0,0.00021469,2]
[419764915,1775363440096,-500.0,0.00021469,2]
[419764916,1775363440105,-151.0,0.0002147,2]
[419764917,1775363440114,-151.0,0.0002147,2]
[419764918,1775363440123,-500.0,0.0002147,2]
[419764919,1775363440133,-500.0,0.0002147,2]
[419764920,1775363440143,-500.0,0.0002147,2]
[419764921,1775363440152,-241.71736557,0.0002147,2]
[419764922,1775363440162,-313.79539013,0.0002147,2]
[419764923,1775363440172,-500.0,0.0002147,2]
[419764924,1775363440181,-500.0,0.0002147,2]
[419764925,1775363440191,-500.0,0.0002147,2]
[419764926,1775363440200,-500.0,0.0002147,2]
[419764927,1775363440209,-500.0,0.0002147,2]
[419764928,1775363440218,-500.0,0.0002147,2]
[419764929,1775363440228,-268.55275586,0.0002147,2]
[419764930,1775363440237,-500.0,0.0002147,2]
[419764931,1775363440246,-500.0,0.0002147,2]
[419764932,1775363440255,-500.0,0.0002147,2]
[419764933,1775363440265,-500.0,0.0002147,2]
[419764934,1775363440274,-500.0,0.0002147,2]
[419764935,1775363440283,-1199.60937211,0.0002147,2]
[419764936,1775363440293,-1199.60937211,0.0002147,2]
[419764937,1775363440396,-1199.60937211,0.0002147,2]
[419764938,1775363440406,-1199.60937211,0.0002147,2]
[419764939,1775363440416,-1199.60937211,0.0002147,2]
[419764940,1775363440425,-500.0,0.0002147,2]
[419764941,1775363440435,-1199.60937211,0.0002147,2]
[419764942,1775363440444,-500.0,0.0002147,2]
[419764943,1775363440453,-1199.60937211,0.0002147,2]
[419764944,1775363440463,-500.0,0.0002147,2]
[419764945,1775363440472,-500.0,0.0002147,2]
[419764946,1775363440481,-886.20162836,0.0002147,2]
[419764947,1775363440497,-313.40774375,0.0002147,2]
[419764948,1775363440506,-500.0,0.0002147,2]
[419764949,1775363440515,-1199.60937211,0.0002147,2]
[419764950,1775363440525,-500.0,0.0002147,2]
[419764951,1775363440535,-1199.60937211,0.0002147,2]
[419764952,1775363440544,-1199.60937211,0.0002147,2]
[419764953,1775363440554,-1199.60937211,0.0002147,2]
[419764954,1775363440564,-1199.60937211,0.0002147,2]
[419764955,1775363440574,-500.0,0.0002147,2]
[419764956,1775363440583,-1199.60937211,0.0002147,2]
[419764957,1775363440592,-500.0,0.0002147,2]
[419764958,1775363440602,-1210.80572626,0.0002147,2]
[419764959,1775363440611,-1210.80572626,0.0002147,2]
[419764960,1775363440621,-500.0,0.0002147,2]
[419764961,1775363440630,-500.0,0.0002147,2]
[419764962,1775363440640,-1210.80572626,0.0002147,2]
[419764963,1775363440649,-328.93551354,0.0002147,2]
[419764964,1775363440658,-1210.80572626,0.0002147,2]
[419764965,1775363440667,-1210.80572626,0.0002147,2]
[419764966,1775363440677,-200.0,0.00021471,2]
[419764967,1775363440686,-211917.06824073,0.00021471,2]
[419764987,1775363443823,-1246.62269966,0.00021471,2]
[419764988,1775363443836,-7477.49666069,0.00021471,2]
[419764989,1775363443848,-760.69687761,0.00021471,2]
[419764990,1775363443859,-878.02523708,0.00021471,2]
[419764991,1775363443880,-454.96465952,0.00021471,2]
[419764993,1775363443892,-16375.58279316,0.00021471,2]
[419764995,1775363443904,-1504.3502,0.00021471,2]
[419765015,1775363449347,-73712.18551423,0.00021471,2]
[419765017,1775363449519,-2243.08747746,0.00021471,2]
[419765018,1775363449531,-341.44406342,0.00021471,2]
[419765019,1775363449575,-6213.91225139,0.00021471,2]
[419765020,1775363540922,15000.0,0.00032,120]
[419765021,1775363556979,-566.14185619,0.00020622,2]
[419765023,1775364242980,1497.01225515,0.00034788,120]
[419765026,1775364632644,-531.51072655,0.00013699,2]
[419765027,1775364632698,-425.97873272,0.00013699,2]
[419765028,1775364632709,-42.51054073,0.00013699,2]
[419765029,1775364632718,-538.78958107,0.00013699,2]
[419765030,1775364632730,-76.21041893,0.00013699,2]
[419765031,1775364632739,-178.972708,0.00020112,2]
[419765032,1775364632748,-6461.6132754,0.00020622,2]
[419765033,1775364632757,-300.0,0.00020895,2]
[419765034,1775364632767,-18.55769396,0.00021169,2]
[419765315,1775364641590,-452.28667416,0.00021169,2]
[419765373,1775364647015,-123.96172963,0.00021169,2]
[419765374,1775364647027,-743.0,0.00021169,2]
[419765375,1775364647039,-278.17361077,0.00021257,2]
[419765376,1775364647051,-2230.315306,0.00021257,2]
[419765377,1775364647063,-721.17048952,0.00021269,2]
[419765378,1775364647075,-500.0,0.00021269,2]
[419765379,1775364647085,-721.17048952,0.00021269,2]
[419765380,1775364647098,-256.0712376,0.00021269,2]
[419765381,1775364647112,-243.9287624,0.00021269,2]
[419765382,1775364647125,-93.2712376,0.00021269,2]
[419765383,1775364647139,-627.89925192,0.00021269,2]
[419765384,1775364647150,-303.14911441,0.00021269,2]
[419765385,1775364647160,-500.0,0.00021269,2]
[419765386,1775364647170,-721.17048952,0.00021269,2]
[419765387,1775364647179,-500.0,0.00021269,2]
[419765388,1775364647189,-721.17048952,0.00021269,2]
[419765389,1775364647201,-500.0,0.00021269,2]
[419765390,1775364647214,-721.17048952,0.00021269,2]
[419765391,1775364647224,-721.17048952,0.00021269,2]
[419765392,1775364647234,-721.17048952,0.00021269,2]
[419765393,1775364647245,-500.0,0.00021269,2]
[419765394,1775364647257,-721.17048952,0.00021269,2]
[419765395,1775364647269,-721.17048952,0.00021269,2]
[419765396,1775364647281,-500.0,0.00021269,2]
[419765397,1775364647292,-500.0,0.00021269,2]
[419765398,1775364647302,-721.17048952,0.00021269,2]
[419765399,1775364647313,-500.0,0.00021269,2]
[419765400,1775364647324,-721.17048952,0.00021269,2]
[419765401,1775364647335,-500.0,0.00021269,2]
[419765402,1775364647346,-721.17048952,0.00021269,2]
[419765403,1775364647356,-721.17048952,0.00021269,2]
[419765404,1775364647366,-500.0,0.00021269,2]
[419765405,1775364647377,-500.0,0.00021269,2]
[419765406,1775364647387,-500.0,0.00021269,2]
[419765407,1775364647398,-500.0,0.00021269,2]
[419765408,1775364647409,-500.0,0.00021269,2]
[419765409,1775364647419,-500.0,0.00021269,2]
[419765410,1775364647430,-721.17048952,0.00021269,2]
[419765411,1775364647441,-616.6761838,0.00021269,2]
[419765412,1775364647451,-500.0,0.00021269,2]
[419765413,1775364647462,-500.0,0.00021269,2]
[419765414,1775364647472,-459.38121041,0.00021269,2]
[419765415,1775364647483,-500.0,0.00021269,2]
[419765416,1775364647493,-500.0,0.00021269,2]
[419765417,1775364647504,-500.0,0.00021269,2]
[419765418,1775364647515,-721.17048952,0.00021269,2]
[419765419,1775364647526,-500.0,0.00021269,2]
[419765420,1775364647536,-500.0,0.00021269,2]
[419765421,1775364647547,-500.0,0.00021269,2]
[419765422,1775364647558,-500.0,0.00021269,2]
[419765423,1775364647569,-139.08492204,0.00021269,2]
[419765424,1775364815379,294.3965181,0.00034788,120]
[419765429,1775365129959,979.4169528,0.00034805,120]
[419765430,1775365199147,695.09647897,0.00034805,120]
[419765431,1775365233156,199.0,0.00034805,120]
[419765432,1775365288430,8122.62273479,0.00034805,120]
[419765433,1775365300534,-1000.0,0.00013699,2]
[419765434,1775365300569,-115.0,0.00013699,2]
[419765435,1775365367829,-158.11772741,0.00020894,2]
[419765436,1775365367862,-160.0,0.00021,3]
[419765437,1775365367894,-160.0,0.00021,2]
[419765439,1775365384489,-191.47597462,0.00021157,2]
[419765440,1775365384522,-138.93032335,0.00021157,2]
[419765441,1775365396328,940.2059691,0.00034805,120]
[419765442,1775365399946,196.0,0.00034805,120]
[419765443,1775365413672,-669.59370203,0.00021068,2]
[419765444,1775365425316,200.0,0.00032877,120]
[419765445,1775365441842,200.0,0.00034805,120]
[419765446,1775365448564,482.355067,0.0003287,120]
[419765447,1775365464415,200.0,0.00032877,120]
[419765448,1775365473916,255.90621662,0.00034805,120]
[419765449,1775365478682,200.0,0.00034805,120]
[419765450,1775365497044,200.0,0.00032877,120]
[419765451,1775365507268,200.0,0.00034805,120]
[419765455,1775365798739,2699.999999,0.00034805,120]
[419765462,1775365831970,-770.00854438,0.00013699,2]
[419765531,1775365838088,-229.99145562,0.00013699,2]
[419765534,1775365838099,-615.0,0.00013699,2]
[419765536,1775365838109,-168.0,0.00020756,2]
[419765538,1775365838119,-196.0613348,0.00020769,2]
[419765540,1775365838128,-300.0,0.00020927,2]
[419765542,1775365838137,-14442.4975298,0.00020928,2]
[419765544,1775365838147,-520.45533554,0.00020967,2]
[419765546,1775365838156,-1018.0,0.00021,2]
[419765547,1775365838166,-1113.48248166,0.00021067,2]
[419765549,1775365838175,-270.48761649,0.00021067,2]
[419765551,1775365838185,-500.0,0.00021067,2]
[419765553,1775365838194,-1113.48248166,0.00021067,2]
[419765556,1775365838205,-500.0,0.00021067,2]
[419765558,1775365838214,-1113.48248166,0.00021067,2]
[419765560,1775365838224,-500.0,0.00021067,2]
[419765561,1775365838232,-1113.48248166,0.00021067,2]
[419765563,1775365838242,-500.0,0.00021067,2]
[419765565,1775365838251,-1113.48248166,0.00021067,2]
[419765567,1775365838260,-500.0,0.00021067,2]
[419765569,1775365838270,-500.0,0.00021067,2]
[419765572,1775365838279,-1113.48248166,0.00021067,2]
[419765573,1775365838288,-500.0,0.00021067,2]
[419765575,1775365838297,-580.98620796,0.00021067,2]
[419765578,1775365838308,-1113.48248166,0.00021067,2]
[419765579,1775365838317,-1113.48248166,0.00021067,2]
[419765581,1775365838326,-1113.48248166,0.00021067,2]
[419765583,1775365838335,-1113.48248166,0.00021067,2]
[419765585,1775365838345,-1113.48248166,0.00021067,2]
[419765587,1775365838355,-500.0,0.00021067,2]
[419765589,1775365838364,-500.0,0.00021067,2]
[419765591,1775365838374,-1113.48248166,0.00021067,2]
[419765593,1775365838383,-235.18624265,0.00021067,2]
[419765595,1775365838392,-500.0,0.00021067,2]